[Event "Polish Ekstraliga 2024"]
[Site "Walbrzych"]
[Date "2024.10.08"]
[Round "2.27"]
[White "Laurusas, Tomas"]
[Black "Toczek, Grzegorz"]
[Result "1-0"]
[ECO "D90"]
[WhiteElo "2573"]
[BlackElo "2267"]
[Annotator "TA"]
[PlyCount "63"]
[EventDate "2024.10.05"]
[EventType "team-tourn"]
[EventCountry "POL"]
[SourceTitle "playchess.com"]
[Source "ChessBase"]
[SourceQuality "1"]
[WhiteTeam "Gliwice"]
[BlackTeam "Sedziszow Malopolski"]
[TimeControl "40/5400+30:1800+30"]

{[%evp 14,63,42,38,41,5,25,11,10,6,0,3,15,3,24,33,69,66,60,53,72,66,77,93,93,60,93,59,104,97,154,144,155,143,162,153,178,172,203,187,208,222,285,269,245,251,223,214,287,276,877,867]} 1. d4 {[%emt 0:00:46]} Nf6 {[%emt 0:00:15]} 2. c4 {[%emt 0:00:48]} g6 {[%emt 0:00:10]} 3. Nc3 {[%emt 0:02:36]} d5 {[%emt 0:00:07]} 4. Nf3 {[%emt 0:02:36]} Bg7 {[%emt 0:00:08]} 5. Qa4+ {[%emt 0:00:30]} c6 {[%emt 0:01:46]} 6. cxd5 {[%emt 0:00:21]} Nxd5 {[%emt 0:00:17]} 7. e4 {[%emt 0:02:07]} Nxc3 {[%emt 0:00:05]} 8. bxc3 {[%emt 0:00:14]} O-O {[%emt 0:00:51][%cal Oc6c5]} 9. Qa3 {[%emt 0:00:21]} Nd7 {[%emt 0:17:51]} 10. Be2 {[%emt 0:09:24]} e5 {[%emt 0:00:51] The position is equal.} 11. O-O {[%emt 0:01:15]} Re8 12. Bg5 {[%emt 0:21:10]} Bf6 {[%emt 0:10:49]} 13. Bxf6 {[%emt 0:02:29]} Qxf6 {[%emt 0:00:14]} 14. Rfe1 {[%emt 0:04:01]} exd4 {[%emt 0:07:39]} 15. cxd4 {[%emt 0:00:21]} Nf8 {[%emt 0:00:11]} ({Reject} 15... Rxe4 $6 16. Bc4 Rxe1+ 17. Rxe1 $18) 16. Bf1 {[%emt 0:08:41]} a5 {[%emt 0:22:16]} 17. Rac1 {[%emt 0:06:45]} Be6 {[%emt 0:13:30]} 18. Qb2 {[%emt 0:01:06]} Rab8 {[%emt 0:01:39]} 19. Re3 {[%emt 0:07:08]} Bd7 {[%emt 0:03:19]} 20. Nd2 {[%emt 0:03:31][%cal Bf3d2,Bd2c4,Bc4d6][%mdl 32]} Qd8 {[%emt 0:02:59]} 21. e5 {[%emt 0:01:08]} f5 {[%emt 0:00:34] Inhibits Ne4.} (21... Be6 $142) 22. Nc4 $16 {[%emt 0:00:33] White is much more active.} Be6 {[%emt 0:00:16]} 23. Nd6 {[%emt 0:00:24]} Re7 {[%emt 0:00:04]} 24. h3 $36 {[%emt 0:03:03][%mdl 2048] White has strong initiative.} Bd5 {[%emt 0:01:30]} 25. Bc4 {[%emt 0:00:11]} Bxc4 {[%emt 0:00:37]} 26. Rxc4 {[%emt 0:00:10][%cal Bc1c4,Bc4a4,Ba4a5,Ba5a8][%mdl 32]} Ne6 {[%emt 0:00:35]} 27. Rb3 {[%emt 0:00:38]} Qd7 {[%emt 0:01:08]} 28. Rb6 {[%emt 0:02:09]} Nd8 {[%emt 0:02:39]} 29. Qa3 {[%emt 0:02:25]} Ra8 {[%emt 0:02:47]} 30. Ra4 {[%emt 0:03:01]} Qc7 {[%emt 0:00:17]} 31. Rxa5 {[%emt 0:00:33]} Qxb6 {[%emt 0:00:19] [#]} (31... Rxa5 32. Qxa5 h5) 32. Rxa8 {[%emt 0:00:06] Weighted Error Value: White=0.06 (flawless) /Black=0.22 (precise) .  Mistake:       	---       	Black=2      Inaccurate:     	White=3     	Black=4      OK:         	White=14    	Black=6      Best:        	White=1     	Black=1} 1-0

[Event "Polish Ekstraliga 2024"]
[Site "Walbrzych"]
[Date "2024.10.08"]
[Round "2.28"]
[White "Kyc, Jerzy"]
[Black "Kantans, Toms"]
[Result "1/2-1/2"]
[ECO "B94"]
[WhiteElo "2253"]
[BlackElo "2493"]
[Annotator "TA"]
[PlyCount "130"]
[EventDate "2024.10.05"]
[EventType "team-tourn"]
[EventCountry "POL"]
[SourceTitle "playchess.com"]
[Source "ChessBase"]
[SourceQuality "1"]
[WhiteTeam "Sedziszow Malopolski"]
[BlackTeam "Gliwice"]
[TimeControl "40/5400+30:1800+30"]

{[%evp 12,130,23,20,14,20,18,0,0,-9,-12,-23,0,-15,12,14,16,21,21,20,10,24,22,0,0,0,0,0,0,0,0,0,0,0,0,0,0,0,0,0,0,0,0,0,0,0,0,0,0,0,0,0,0,0,0,0,0,-37,-30,-122,-118,-138,-131,-180,-176,-239,-81,-228,-226,-166,-207,-182,-116,-116,-120,-133,-123,-129,-30,-24,-21,-65,-65,-64,-52,-36,-8,-8,-8,-8,-14,-14,-8,-8,-8,-20,-8,-20,-20,-20,-20,-20,0,-8,0,0,0,0,0,0,0,0,0,0,0,0,0,0,0,0,0]} 1. e4 {[%emt 0:00:00]} c5 {[%emt 0:00:40]} 2. Nf3 {[%emt 0:00:04]} d6 {[%emt 0:00:20]} 3. d4 {[%emt 0:00:43]} cxd4 {[%emt 0:00:09]} 4. Nxd4 {[%emt 0:00:03]} Nf6 {[%emt 0:00:08]} 5. Nc3 {[%emt 0:00:03]} a6 {[%emt 0:00:06]} 6. Bg5 {[%emt 0:00:03]} Nbd7 {[%emt 0:00:47]} 7. Bc4 {[%emt 0:03:08]} Qb6 {[%emt 0:02:01]} 8. Bb3 {[%emt 0:00:46]} e6 {[%emt 0:01:04]} 9. f4 {[%emt 0:01:57]} Be7 {[%emt 0:03:12]} 10. Qd2 {[%emt 0:01:16]} Nc5 {[%emt 0:03:13]} 11. Bxf6 {[%emt 0:01:02]} Bxf6 {[%emt 0:00:08]} 12. O-O-O {[%emt 0:00:15][%cal Ba1d1,Bd1d6,Bd6b6][%mdl 32]} O-O {[%emt 0:07:54]} 13. g4 {[%emt 0:00:24]} Bxd4 {[%emt 0:05:27]} 14. Qxd4 {[%emt 0:01:19]} e5 {[%emt 0:00:08]} 15. Qxd6 {[%emt 0:06:53]} Qxd6 {[%emt 0:00:00]} 16. Rxd6 {[%emt 0:00:30]} exf4 17. Rf1 Nxb3+ {[%emt 0:16:43]} 18. axb3 {[%emt 0:03:13]} Bxg4 {[%emt 0:00:07]} 19. Rxf4 {[%emt 0:00:13]} h5 {[%emt 0:00:13]} 20. Rb6 {[%emt 0:01:26]} Rab8 {[%emt 0:00:07]} 21. Nd5 {[%emt 0:00:33]} Rfe8 {[%emt 0:00:32]} 22. c4 {[%emt 0:12:32]} Re5 {[%emt 0:06:56]} 23. Kd2 {[%emt 0:11:09]} Re6 {[%emt 0:10:07]} 24. Kd3 {[%emt 0:10:08]} Rxb6 {[%emt 0:05:08]} 25. Nxb6 $11 {[%emt 0:00:03][%mdl 4096] Endgame. KRB-KRN} g5 {[%emt 0:00:09]} ({Don't take} 25... Rd8+ 26. Nd5 $17) 26. Rf1 {[%emt 0:02:48]} Kg7 {[%emt 0:00:15]} 27. Kd4 {[%emt 0:07:11]} Re8 {[%emt 0:00:28]} 28. Nd5 {[%emt 0:01:52]} Bh3 {[%emt 0:00:25]} 29. Rf2 {[%emt 0:01:50]} h4 {[%emt 0:00:26]} 30. e5 {[%emt 0:04:18]} Re6 {[%emt 0:05:35]} 31. Nc7 {[%emt 0:08:36]} Re7 {[%emt 0:15:50]} 32. Nd5 {[%emt 0:01:33]} Re8 {[%emt 0:00:04]} 33. Nf6 {[%emt 0:04:29]} Rd8+ {[%emt 0:10:18]} 34. Nd5 {[%emt 0:08:22]} Be6 {[%emt 0:00:26]} 35. Kc5 {[%emt 0:02:33]} (35. Rf1 $11 {keeps the balance.}) 35... g4 $1 $17 {[%emt 0:06:43]} 36. Kd4 {[%emt 0:06:39]} Kg6 $1 {[%emt 0:00:50]} 37. Ke4 {[%emt 0:00:26] [#]} (37. b4 $17 {keeps fighting.}) 37... Kg5 $1 $19 {[%emt 0:00:06]} 38. Rf6 {[%emt 0:00:35]} (38. Ne3 {was called for.}) 38... Rh8 $2 {[%emt 0:01:20]} (38... h3 $19 {[%cal Og4g3] and Black stays clearly on top. White must now prevent ...g3!} 39. Rf1 b5) 39. Nf4 {[%emt 0:00:25]} (39. Nc3 $17) 39... g3 {[%emt 0:00:39]} 40. Kf3 {[%emt 0:00:00]} gxh2 {[%emt 0:00:00]} 41. Kg2 {[%emt 0:00:38] [#]} Bf5 {[%emt 0:04:02]} ({Better is} 41... Rd8 $1 $19 {[%cal Rd8d2]} 42. Nxe6+ fxe6 43. Rxe6 Rd2+ 44. Kh1 Rxb2) 42. Nd5 $17 {[%emt 0:00:45]} Re8 {[%emt 0:03:08]} 43. Rxf7 {[%emt 0:00:07]} Rxe5 {[%emt 0:00:07]} 44. Nc3 {[%emt 0:00:43] Prevents Re2+.} b5 {[%emt 0:11:16]} (44... h1=R $17 {( -> ...Ree1)} 45. Kxh1 Re1+ 46. Kh2 b5 47. cxb5 axb5) 45. cxb5 $11 {[%emt 0:00:54]} axb5 {[%emt 0:00:03] aiming for ...b4.} 46. b4 {[%emt 0:03:13]} Re3 {[%emt 0:05:25] ...Rh3 is the strong threat.} 47. Kxh2 {[%emt 0:02:28]} Rd3 {[%emt 0:00:17]} 48. Re7 {[%emt 0:00:46]} Bg4 {[%emt 0:04:01]} 49. Re5+ {[%emt 0:00:11] The position is equal.} Kf4 {[%emt 0:00:52]} 50. Rd5 {[%emt 0:00:11]} Rh3+ {[%emt 0:02:42]} 51. Kg2 $1 {[%emt 0:00:01]} Rg3+ {[%emt 0:00:09]} 52. Kh2 {[%emt 0:00:09]} Bf3 {[%emt 0:04:16]} 53. Rd4+ {[%emt 0:02:15]} Ke3 {[%emt 0:00:55]} 54. Rxh4 {[%emt 0:00:56]} Rg2+ {[%emt 0:00:04]} 55. Kh3 {[%emt 0:00:02]} Rg1 {[%emt 0:01:16][%mdl 1024] Threatens to win with ...Kf2. Black has compensation.} 56. Kh2 $1 {[%emt 0:00:53]} Rg5 {[%emt 0:00:05]} 57. Kh3 {[%emt 0:01:45]} Bg2+ {[%emt 0:00:48]} 58. Kh2 {[%emt 0:00:03]} Bc6 {[%emt 0:00:11]} 59. Rh6 {[%emt 0:00:35]} Bd7 {[%emt 0:00:58]} 60. Rd6 {[%emt 0:00:32]} Bf5 {[%emt 0:00:38]} 61. Rd5 {[%emt 0:02:28]} Kf3 {[%emt 0:00:26]} 62. Rxb5 {[%emt 0:05:46]} Rh5+ {[%emt 0:00:06]} 63. Kg1 {[%emt 0:00:02]} Rg5+ {[%emt 0:00:09]} 64. Kh2 {[%emt 0:00:01]} Rh5+ {[%emt 0:00:05]} 65. Kg1 {[%emt 0:00:02]} Rg5+ {[%emt 0:00:05] And White is the lucky defender.   Weighted Error Value: White=0.12 (very precise) /Black=0.10 (very precise) .  Mistake:       	White=4     	Black=3      Inaccurate:     	White=2     	Black=2      OK:         	White=22    	Black=26     Best:        	White=6     	Black=1      Strong:       	White=2     	Black=3} 1/2-1/2

[Event "Polish Ekstraliga 2024"]
[Site "Walbrzych"]
[Date "2024.10.08"]
[Round "2.29"]
[White "Klekowski, Maciej"]
[Black "Sendera, Jaroslaw"]
[Result "1-0"]
[ECO "E73"]
[WhiteElo "2463"]
[BlackElo "2219"]
[Annotator "TA"]
[PlyCount "65"]
[EventDate "2024.10.05"]
[EventType "team-tourn"]
[EventCountry "POL"]
[SourceTitle "playchess.com"]
[Source "ChessBase"]
[SourceQuality "1"]
[WhiteTeam "Gliwice"]
[BlackTeam "Sedziszow Malopolski"]
[TimeControl "40/5400+30:1800+30"]

{[%evp 11,65,46,51,21,8,8,9,19,13,21,86,49,109,67,65,31,66,64,107,129,125,129,202,208,252,237,245,235,252,227,767,293,324,315,314,313,316,310,393,403,396,388,375,300,324,331,327,324,548,521,799,668,2009,1146,29989,29990]} 1. d4 {[%emt 0:00:03]} Nf6 {[%emt 0:01:15]} 2. c4 {[%emt 0:00:13]} g6 {[%emt 0:00:42]} 3. Nc3 {[%emt 0:00:06]} Bg7 {[%emt 0:01:06]} 4. e4 {[%emt 0:00:07]} d6 {[%emt 0:00:35]} 5. Be2 {[%emt 0:00:21]} O-O {[%emt 0:01:14]} 6. Be3 {[%emt 0:00:12]} Nbd7 {[%emt 0:16:41]} 7. g4 {[%emt 0:01:13]} c5 {[%emt 0:07:56]} 8. g5 {[%emt 0:01:23]} Nh5 {[%emt 0:00:45]} 9. Bxh5 {The position is equal.} gxh5 {[%emt 0:04:33]} 10. Nge2 {[%emt 0:20:39]} h4 {[%emt 0:23:16]} (10... cxd4 $11 {keeps the balance.} 11. Nxd4 Ne5) 11. Rg1 {[%emt 0:28:18]} Re8 {[%emt 0:19:33]} (11... Qa5 $14) 12. f3 {[%emt 0:11:00][%cal Bf2f3,Bf3f4][%mdl 32]} a6 {[%emt 0:01:51][%cal Ob7b5]} 13. a4 {[%emt 0:03:29][%cal Ba2a4,Ba4a5][%mdl 32] White is more active.} e6 {[%emt 0:03:42]} 14. Kf2 {[%emt 0:07:45]} cxd4 {[%emt 0:04:58] White leaves nothing to chance now.} 15. Bxd4 {[%emt 0:00:20]} Ne5 {[%emt 0:00:52]} 16. a5 {[%emt 0:03:27]} Bd7 {[%emt 0:00:48]} (16... Ng6 $16 17. Bxg7 Kxg7) 17. f4 $18 {[%emt 0:00:21]} Nc6 {[%emt 0:01:15]} 18. Bxg7 {[%emt 0:00:06]} Kxg7 {[%emt 0:00:17]} 19. Qxd6 {[%emt 0:00:05]} Re7 {[%emt 0:04:19] Black is weak on the dark squares} 20. Rgd1 {[%emt 0:01:22][%cal Of4f5] [#] And now f5! would win.} Qe8 $2 {[%emt 0:00:17]} (20... Be8 21. Qxd8 Nxd8) 21. Nd4 $2 {[%emt 0:00:40]} (21. f5) 21... Nxd4 {[%emt 0:00:52]} 22. Rxd4 {[%emt 0:00:55][%cal Of4f5] f5! would now be deadly.} Bc6 {[%emt 0:00:41]} 23. Qe5+ {[%emt 0:00:15]} Kg8 {[%emt 0:00:12]} 24. Rad1 {[%emt 0:00:19]} Rd7 {[%emt 0:00:40]} 25. Rxd7 {[%emt 0:00:34]} Bxd7 {[%emt 0:00:08]} 26. Kf3 {[%emt 0:01:48]} Bc6 {[%emt 0:00:36]} 27. Qd6 {[%emt 0:01:32] Inhibits Rd8.} Rb8 {[%emt 0:01:29]} 28. b4 {[%emt 0:00:43]} Rc8 {[%emt 0:00:17]} 29. c5 {[%emt 0:00:33]} f5 $2 {[%emt 0:01:36]} (29... Qf8 {might work better.} 30. Qxf8+ Rxf8) 30. gxf6 {[%emt 0:00:23][%cal Bg5f6,Bf6f7][%mdl 32] White wants to mate with Rg1+.} Qh5+ {[%emt 0:00:45]} 31. Kf2 {[%emt 0:00:17]} Kh8 {[%emt 0:01:31]} 32. Qxe6 {[%emt 0:00:55]} Re8 {[%emt 0:00:45] [#]} 33. f7 $1 {[%emt 0:00:08] Weighted Error Value: White=0.38/Black=0.53.  Mistake:       	White=1     	Black=5      Inaccurate:     	White=3     	Black=4      OK:         	White=12    	Black=4      Best:        	White=1     	Black=1} 1-0

[Event "Polish Ekstraliga 2024"]
[Site "Walbrzych"]
[Date "2024.10.09"]
[Round "3.1"]
[White "Licznerski, Lukasz"]
[Black "Erdogmus, Yagiz Kaan"]
[Result "0-1"]
[ECO "C88"]
[WhiteElo "2430"]
[BlackElo "2601"]
[Annotator "TA"]
[PlyCount "100"]
[EventDate "2024.10.05"]
[EventType "team-tourn"]
[EventCountry "POL"]
[SourceTitle "playchess.com"]
[Source "ChessBase"]
[SourceQuality "1"]
[WhiteTeam "Wisznia Mala"]
[BlackTeam "Legnica"]
[TimeControl "40/5400+30:1800+30"]

{[%evp 26,99,0,0,0,-20,-18,-13,-17,-37,-28,-32,-24,-31,-40,-61,-66,-80,-76,-77,-59,-89,-96,-101,-101,-119,-100,-115,-112,-106,-108,-100,-105,-118,-99,-104,-86,-103,-80,-80,-89,-95,-83,-83,-23,-72,-71,-69,-72,-141,-140,-149,-130,-140,-163,-130,-127,-217,-325,-341,-350,-350,-334,-346,-354,-6194,-6123,-29978,-29979,-29979,-29980,-29980,-29981,-29981,-29982,-29999]} 1. e4 {[%emt 0:02:44]} e5 {[%emt 0:00:06]} 2. Nf3 {[%emt 0:00:05]} Nc6 {[%emt 0:00:04]} 3. Bb5 {[%emt 0:00:19][%cal Bf1b5,Bb5a4,Ba4b3,Bb3a2][%mdl 32]} a6 {[%emt 0:00:05]} 4. Ba4 {[%emt 0:00:05]} Nf6 {[%emt 0:00:07]} 5. O-O {[%emt 0:00:37]} Be7 {[%emt 0:00:14]} 6. Re1 {[%emt 0:00:23]} b5 {[%emt 0:00:15]} 7. Bb3 {[%emt 0:00:02]} O-O {[%emt 0:00:06]} 8. a4 {[%emt 0:01:21]} Bb7 {[%emt 0:00:13]} 9. d3 {[%emt 0:06:40]} d6 {[%emt 0:00:06]} 10. Nc3 {[%emt 0:02:02]} Na5 {[%emt 0:04:15]} 11. Ba2 {[%emt 0:00:18]} b4 {[%emt 0:00:06]} 12. Ne2 {[%emt 0:09:57]} c5 {[%emt 0:06:41]} 13. Ng3 {[%emt 0:00:31]} Bc8 {[%emt 0:06:54]} 14. Nd2 {[%emt 0:09:08]} Bg4 {[%emt 0:15:35]} 15. f3 {[%emt 0:00:11]} Be6 {[%emt 0:00:04]} 16. Nc4 {[%emt 0:00:06]} Nc6 {[%emt 0:08:28] The position is equal.} 17. Ne3 {[%emt 0:08:33]} Bxa2 {[%emt 0:04:11]} 18. Rxa2 {[%emt 0:00:01] [#]} b3 $1 {[%emt 0:00:07]} 19. cxb3 {[%emt 0:00:36][%cal Oa4a5]} g6 {[%emt 0:01:45]} 20. Nc4 {[%emt 0:21:31]} d5 {[%emt 0:10:34]} 21. exd5 {[%emt 0:00:35]} Nxd5 {[%emt 0:00:45]} 22. Ra1 {[%emt 0:02:03]} Ndb4 {[%emt 0:03:28][%mdl 1024] Black has strong compensation.} 23. Bh6 {[%emt 0:01:46]} Re8 {[%emt 0:02:03]} 24. Re2 {[%emt 0:00:03]} f5 {[%emt 0:02:37]} (24... Qxd3 $2 25. Rd2 $18 (25. Nxe5 Qd4+ 26. Qxd4 Nxd4 $17) (25. Nxe5 Qd4+ 26. Kf1 Rad8 $17)) 25. Bd2 {[%emt 0:14:04]} Bf6 {[%emt 0:08:35]} 26. Bc3 {[%emt 0:00:29][%cal Of3f4]} Nd4 {[%emt 0:04:31]} (26... Qxd3 $2 27. Rd2 $18) 27. Rf2 {[%emt 0:00:37]} Rb8 {[%emt 0:02:32]} 28. Ne2 {[%emt 0:02:07]} Ndc6 {[%emt 0:00:51]} 29. Nc1 {[%emt 0:00:25]} h5 {[%emt 0:02:35]} 30. Kh1 {[%emt 0:01:20]} h4 {[%emt 0:00:36]} 31. Qf1 {[%emt 0:04:03]} Rb7 {[%emt 0:04:05]} 32. Na2 {[%emt 0:04:43]} Nd5 {[%emt 0:00:30]} (32... Nxd3 33. Rd2 e4 34. Bxf6 (34. fxe4 Bxc3 35. Rxd3 Bd4 $11) 34... Qxf6 35. fxe4 $16) (32... Qxd3 33. Nxb4 Qxf1+ (33... Nxb4 $2 34. Qg1 $18) 34. Raxf1 $16) 33. Re1 {[%emt 0:01:13][%cal Of3f4]} Nf4 {[%emt 0:06:21]} 34. Nc1 {[%emt 0:00:36]} Nh5 {[%emt 0:01:11] Black has more active pieces.} (34... Rh7 $17) 35. Ne2 {[%emt 0:01:43]} (35. f4 $11) 35... Rh7 $17 {[%emt 0:01:58][%cal Oh5g3]} (35... Qxd3 $2 36. Rd1 $18) 36. Kg1 {[%emt 0:00:21]} Bg5 {[%emt 0:01:43]} (36... Qxd3 $2 37. Rd1 $18) 37. g4 {[%emt 0:00:35]} (37. Rd1 $142) 37... hxg3 {[%emt 0:00:27]} 38. hxg3 {[%emt 0:00:02]} Nd4 {[%emt 0:00:44]} ({Worse is} 38... Qxd3 39. Rd1 Qc2 40. Nc1 $16 (40. Nd4 Qxd1 41. Qxd1 exd4 $11)) 39. Bxd4 {[%emt 0:06:08]} cxd4 {[%emt 0:01:52]} 40. Rh2 {[%emt 0:00:00]} e4 $1 $36 {[%emt 0:00:00][%mdl 2048] Keeping White busy.} 41. Rd1 {[%emt 0:04:07]} (41. fxe4 $17 fxe4 42. Rd1) 41... exd3 $1 $19 {[%emt 0:19:02]} 42. Rxd3 {[%emt 0:00:30] [#]} Nxg3 $1 {[%emt 0:05:34][%mdl 512]} 43. Nxg3 {[%emt 0:00:23] Rxh7 would now be deadly.} Rxh2 {[%emt 0:00:07]} 44. Kxh2 {[%emt 0:15:46] [#] Strongly threatening Qf2.} Bf4 $1 {[%emt 0:00:04]} 45. Kh3 {[%emt 0:00:23] Prevents Qh4+.} (45. Qh3 Qg5 46. Kg2 (46. Rxd4 $2 {loses.} Re2+ 47. Kh1 Re1+ 48. Kh2 Bxg3+ 49. Qxg3 Rh1+ 50. Kxh1 Qxg3 $19) 46... Bxg3 47. Qxg3 Re2+ 48. Kf1 (48. Kh3 $2 Qh5+ 49. Qh4 Rh2+ 50. Kxh2 Qxh4+ 51. Kg2 g5 $19) 48... Qxg3 49. Kxe2) 45... Bxg3 {[%emt 0:05:24]} 46. Kxg3 {[%emt 0:01:01] [#]} f4+ $1 {[%emt 0:00:48][%mdl 512] Black mates.} 47. Kg4 {[%emt 0:05:46]} Qf6 {[%emt 0:00:06]} 48. Nd6 {[%emt 0:02:26]} Re5 {[%emt 0:00:19]} 49. Kh3 {[%emt 0:01:12]} Rg5 {[%emt 0:01:26][%cal Rf6h8]} 50. Ne4 {[%emt 0:01:03]} Qh8# {[%emt 0:00:01] Weighted Error Value: White=0.39/Black=0.05 (flawless) .  Mistake:       	White=4     	Black=1      Inaccurate:     	White=2     	---        OK:         	White=9     	Black=13     Best:        	White=2     	Black=3      Strong:       	---       	Black=3      Brilliant:      	---       	Black=1} 0-1

[Event "Polish Ekstraliga 2024"]
[Site "Walbrzych"]
[Date "2024.10.09"]
[Round "3.2"]
[White "Malek, Jan"]
[Black "Sabuk, Piotr"]
[Result "1-0"]
[ECO "D38"]
[WhiteElo "2479"]
[BlackElo "2402"]
[Annotator "TA"]
[PlyCount "69"]
[EventDate "2024.10.05"]
[EventType "team-tourn"]
[EventCountry "POL"]
[SourceTitle "playchess.com"]
[Source "ChessBase"]
[SourceQuality "1"]
[WhiteTeam "Legnica"]
[BlackTeam "Wisznia Mala"]
[TimeControl "40/5400+30:1800+30"]

{[%evp 11,69,8,20,14,14,3,14,0,38,0,-3,0,0,-2,-18,-8,68,71,76,59,88,84,123,127,247,265,269,239,257,226,360,368,410,404,455,422,404,421,409,394,419,337,348,346,522,522,516,527,1717,1650,1750,1445,1955,1901,5322,5322,5322,4773,29993,29994]} 1. Nf3 {[%emt 0:00:02]} d5 {[%emt 0:00:19]} 2. d4 {[%emt 0:00:05]} Nf6 {[%emt 0:00:31]} 3. c4 {[%emt 0:00:08]} e6 {[%emt 0:00:19]} 4. Nc3 {[%emt 0:00:07]} Bb4 {[%emt 0:01:02]} 5. Qa4+ {[%emt 0:00:07]} Nc6 {[%emt 0:00:12]} 6. e3 {[%emt 0:00:03]} O-O {[%emt 0:00:53]} 7. Qc2 {[%emt 0:00:06]} Re8 {[%emt 0:01:27]} 8. Bd2 {[%emt 0:00:08]} Bf8 {[%emt 0:04:53]} 9. a3 {[%emt 0:00:14] The position is equal.} h6 {[%emt 0:05:11]} 10. Ne5 {[%emt 0:00:12]} Nxe5 {[%emt 0:15:51]} 11. dxe5 {[%emt 0:00:13]} Nd7 {[%emt 0:00:03]} 12. f4 {[%emt 0:00:07]} c6 {[%emt 0:05:44]} 13. h4 {[%emt 0:00:10]} f6 {[%emt 0:04:06]} ({Better is} 13... Nb6 $11) 14. g4 $14 {[%emt 0:21:22][%cal Bg2g4,Bg4g5][%mdl 32] White is more active.} fxe5 {[%emt 0:01:57]} 15. g5 {[%emt 0:00:18]} e4 {[%emt 0:05:10] White now steadily converts the win.} 16. O-O-O {[%emt 0:01:06]} h5 {[%emt 0:07:11]} 17. Be2 $1 {[%emt 0:07:08]} g6 {[%emt 0:01:33] [#]} (17... Nc5 $16 {was called for.}) 18. Nxe4 $1 $18 {[%emt 0:00:25][%mdl 512]} dxe4 {[%emt 0:01:06]} 19. Qxe4 {[%emt 0:00:10]} (19. Bc3 Bg7 20. Qxe4 Bxc3 21. bxc3 Kg7 $11) 19... Bg7 {[%emt 0:02:36]} 20. Qxg6 {[%emt 0:07:43]} Nf8 {[%emt 0:06:03]} (20... Re7 $142 21. Bxh5 (21. Qxh5 Qb6 $11) 21... e5) 21. Qc2 {[%emt 0:00:28]} (21. Qxh5 Qb6 22. Bb4 (22. Qxe8 $2 Qxb2#) 22... Qxe3+ 23. Kb1 e5 $11) 21... Bd7 {[%emt 0:25:50]} 22. Bxh5 {[%emt 0:02:11]} Qe7 {[%emt 0:00:14]} 23. Bxe8 {[%emt 0:05:05]} Bxe8 {[%emt 0:00:10]} 24. h5 {[%emt 0:00:13]} b5 {[%emt 0:03:17]} 25. e4 {[%emt 0:07:39][%cal Be3e4,Be4e5][%mdl 32]} bxc4 {[%emt 0:00:37]} 26. Qxc4 {[%emt 0:00:10]} Rb8 {[%emt 0:01:11]} 27. e5 {[%emt 0:04:18]} Nd7 {[%emt 0:00:32]} (27... c5 {might work better.} 28. Bc3 Qf7) 28. Be3 {[%emt 0:01:45]} (28. Qxc6 $2 Nxe5 29. Bb4 Nxc6 $19) 28... Bf8 {[%emt 0:03:23]} 29. Rd6 {[%emt 0:02:31]} (29. Qxc6 Nb6 30. Qe4 Qc7+ 31. Qc2 Qb7 $11) 29... Qh7 {[%emt 0:00:44]} 30. g6 {[%emt 0:00:59]} Bxg6 {[%emt 0:00:58]} 31. Qxe6+ {[%emt 0:00:31]} Bf7 {[%emt 0:00:21]} 32. Qxd7 {[%emt 0:01:17]} Qe4 {[#]} 33. Rg1+ $1 {[%emt 0:00:44]} ({Not} 33. Qxc6 Qxe3+ 34. Rd2 Rd8 $11) 33... Kh8 {[%emt 0:01:48]} 34. Bd4 {[%emt 0:02:38]} (34. Qxc6 $2 {loses.} Qxe3+ 35. Rd2 Qxg1+ $19) 34... Bd5 {[%emt 0:01:46]} 35. Rf6 {[%emt 0:02:47] Weighted Error Value: White=0.07 (flawless) /Black=0.62.  Mistake:       	---       	Black=4      Inaccurate:     	White=1     	Black=4      OK:         	White=13    	Black=6      Best:        	White=4     	Black=1      Strong:       	White=1     	---        Brilliant:      	White=1     	---} (35. Bxa7 {gets mated.} Qc4+ 36. Kb1 Qa2+ 37. Kc2 Rxb2+ 38. Kd3 Qxa3+ 39. Kd4 Rd2#) 1-0